fUST/lending_fUST_20250620
["ID","MTS","AMOUNT","RATE_DAILY","PERIOD"]
[366694290,1750414263673,-460.0,0.00023013,6]
[366694291,1750414263683,-782.36,0.00023013,6]
[366694292,1750414263692,-1373.98,0.00023013,6]
[366694293,1750414263702,-433.49486638,0.00023013,6]
[366694294,1750414263712,-460.0,0.00023013,6]
[366694295,1750414263722,-460.0,0.00023013,6]
[366694296,1750414263732,-843.77,0.00023013,2]
[366694297,1750414263741,-460.0,0.00023013,6]
[366694298,1750414263751,-344.22252767,0.00023013,6]
[366694299,1750414263761,-460.0,0.00023013,6]
[366694300,1750414263770,-464.57221081,0.00023021,2]
[366694301,1750414263780,-1000.0,0.00023021,2]
[366694302,1750414263790,-539.19147127,0.00023021,2]
[366694303,1750414263799,-1000.0,0.00023021,2]
[366694304,1750414263809,-1000.0,0.00023021,2]
[366694305,1750414263819,-1000.0,0.00023021,2]
[366694306,1750414263829,-1000.0,0.00023021,2]
[366694307,1750414263839,-1000.0,0.00023021,2]
[366694308,1750414263850,-561.834984,0.00023021,2]
[366694309,1750414263860,-1200.0,0.00023021,2]
[366694310,1750414263871,-265.0,0.00023095,2]
[366694311,1750414263881,-687.3592294,0.00023141,8]
[366694312,1750414263891,-500.0,0.0002318,2]
[366694313,1750414263902,-585.03096324,0.00023185,2]
[366694314,1750414263912,-197.197,0.00023221,2]
[366694315,1750414263923,-507.11601348,0.00023229,8]
[366694316,1750414263934,-500.0,0.00023229,8]
[366694317,1750414263945,-265.0,0.00023237,2]
[366694318,1750414263955,-1500.0,0.00023268,2]
[366694319,1750414263966,-500.0,0.00023268,2]
[366694320,1750414263976,-687.3592294,0.00023279,8]
[366694321,1750414263986,-160.0,0.00023286,2]
[366694322,1750414263996,-460.0,0.00023287,6]
[366694323,1750414264006,-440.0,0.00023287,6]
[366694324,1750414264016,-310.0,0.00023287,6]
[366694325,1750414264025,-460.0,0.00023287,6]
[366694326,1750414264036,-460.0,0.00023287,6]
[366694327,1750414264046,-525.98508371,0.00023287,6]
[366694328,1750414264056,-440.0,0.00023287,6]
[366694329,1750414264066,-460.0,0.00023287,6]
[366694330,1750414264076,-460.0,0.00023287,6]
[366694331,1750414264087,-460.0,0.00023287,6]
[366694332,1750414264098,-460.0,0.00023287,6]
[366694333,1750414264108,-460.0,0.00023287,6]
[366694334,1750414264118,-430.0,0.00023287,6]
[366694335,1750414264128,-460.0,0.00023287,6]
[366694336,1750414264139,-448.01673979,0.00023287,6]
[366694337,1750414264149,-460.0,0.00023287,6]
[366694338,1750414264160,-460.0,0.00023287,6]
[366694339,1750414264170,-352.22530489,0.00023287,6]
[366694340,1750414264180,-460.0,0.00023287,6]
[366694341,1750414264190,-230.0,0.00023287,6]
[366694342,1750414264200,-397.40029213,0.00023287,6]
[366694343,1750414264210,-460.0,0.00023287,6]
[366694344,1750414264220,-460.0,0.00023287,6]
[366694345,1750414264233,-460.0,0.00023287,6]
[366694346,1750414264243,-460.0,0.00023287,6]
[366694347,1750414264253,-460.0,0.00023287,6]
[366694348,1750414264263,-460.0,0.00023287,6]
[366694349,1750414264273,-460.0,0.00023287,6]
[366694350,1750414264283,-460.0,0.00023287,6]
[366694351,1750414264294,-460.0,0.00023287,6]
[366694352,1750414264303,-460.0,0.00023287,6]
[366694353,1750414264313,-460.0,0.00023287,6]
[366694354,1750414264323,-524.64135792,0.00023287,6]
[366694355,1750414264334,-472.72637306,0.00023287,6]
[366694356,1750414264344,-261.62673082,0.00023287,6]
[366694357,1750414264354,-460.0,0.00023287,6]
[366694358,1750414264364,-460.0,0.00023287,6]
[366694359,1750414264374,-460.0,0.00023287,6]
[366694360,1750414264384,-460.0,0.00023287,6]
[366694361,1750414264394,-460.0,0.00023287,6]
[366694362,1750414264405,-460.0,0.00023287,6]
[366694363,1750414264415,-460.0,0.00023287,6]
[366694364,1750414264425,-151.0,0.00023287,7]
[366694365,1750414264435,-460.0,0.00023287,6]
[366694366,1750414264445,-151.0,0.00023287,7]
[366694367,1750414264455,-253.365528,0.00023287,7]
[366694368,1750414264464,-460.0,0.00023287,6]
[366694369,1750414264475,-460.0,0.00023287,6]
[366694370,1750414264485,-460.0,0.00023287,6]
[366694371,1750414264495,-460.0,0.00023287,6]
[366694372,1750414264505,-460.0,0.00023287,6]
[366694373,1750414264515,-440.08389935,0.00023287,6]
[366694374,1750414264524,-460.0,0.00023287,6]
[366694375,1750414264534,-460.0,0.00023287,6]
[366694376,1750414264544,-460.0,0.00023287,6]
[366694377,1750414264554,-577.86,0.00023287,6]
[366694378,1750414264564,-460.0,0.00023287,6]
[366694379,1750414264574,-460.0,0.00023287,6]
[366694380,1750414264583,-460.0,0.00023287,6]
[366694381,1750414264593,-460.0,0.00023287,6]
[366694382,1750414264603,-460.0,0.00023287,6]
[366694383,1750414264612,-460.0,0.00023287,6]
[366694384,1750414264622,-460.0,0.00023287,6]
[366694385,1750414264631,-460.0,0.00023287,6]
[366694386,1750414264641,-460.0,0.00023287,6]
[366694387,1750414264650,-1189.1,0.00023287,6]
[366694388,1750414264660,-460.0,0.00023287,6]
[366694389,1750414264670,-460.0,0.00023287,6]
[366694390,1750414264680,-356.21707542,0.00023287,6]
[366694391,1750414264689,-460.0,0.00023287,6]
[366694392,1750414264699,-460.0,0.00023287,6]
[366694393,1750414264708,-505.17,0.00023287,6]
[366694394,1750414264718,-460.0,0.00023287,6]
[366694395,1750414264728,-1639.91,0.00023287,6]
[366694396,1750414264739,-460.0,0.00023287,6]
[366694397,1750414264748,-460.0,0.00023287,6]
[366694398,1750414264758,-460.0,0.00023287,6]
[366694399,1750414264767,-460.0,0.00023287,6]
[366694400,1750414264777,-1631.31,0.00023287,6]
[366694401,1750414264786,-460.0,0.00023287,6]
[366694402,1750414264796,-460.0,0.00023287,6]
[366694403,1750414264805,-437.53904802,0.00023287,6]
[366694404,1750414264815,-460.0,0.00023287,6]
[366694405,1750414264824,-1235.74,0.00023287,6]
[366694406,1750414264834,-460.0,0.00023287,6]
[366694407,1750414264843,-460.0,0.00023287,6]
[366694408,1750414264853,-460.0,0.00023287,6]
[366694409,1750414264863,-460.0,0.00023287,6]
[366694410,1750414264872,-1325.04,0.00023287,6]
[366694411,1750414264882,-386.30709815,0.00023287,6]
[366694412,1750414264891,-460.0,0.00023287,6]
[366694413,1750414264901,-460.0,0.00023287,6]
[366694414,1750414264911,-375.37003397,0.00023287,6]
[366694415,1750414264920,-460.0,0.00023287,6]
[366694416,1750414264929,-197.599213,0.00023287,2]
[366694417,1750414264939,-460.0,0.00023287,6]
[366694418,1750414264948,-197.599213,0.00023287,2]
[366694419,1750414264958,-460.0,0.00023287,6]
[366694420,1750414264967,-460.0,0.00023287,6]
[366694421,1750414264977,-537.10096757,0.00023287,6]
[366694422,1750414264986,-582.22,0.00023287,6]
[366694423,1750414264996,-460.0,0.00023287,6]
[366694424,1750414265005,-460.0,0.00023287,6]
[366694425,1750414265015,-151.0,0.00023287,7]
[366694426,1750414265025,-460.17946922,0.00023287,6]
[366694427,1750414265034,-460.0,0.00023287,6]
[366694428,1750414265044,-451.87699738,0.00023287,6]
[366694429,1750414265053,-958.44,0.00023287,6]
[366694430,1750414265063,-460.0,0.00023287,6]
[366694431,1750414265072,-460.0,0.00023287,6]
[366694432,1750414265083,-647.26,0.00023287,6]
[366694433,1750414265093,-460.0,0.00023287,6]
[366694434,1750414265102,-460.0,0.00023287,6]
[366694435,1750414265111,-460.0,0.00023287,6]
[366694436,1750414265121,-460.0,0.00023287,6]
[366694437,1750414265130,-460.0,0.00023287,6]
[366694438,1750414265140,-517.01492253,0.00023287,6]
[366694439,1750414265150,-493.86,0.00023287,6]
[366694440,1750414265161,-460.36,0.00023287,6]
[366694441,1750414265171,-460.0,0.00023287,6]
[366694442,1750414265181,-460.0,0.00023287,6]
[366694443,1750414265190,-460.0,0.00023287,6]
[366694444,1750414265199,-460.0,0.00023287,6]
[366694445,1750414265209,-460.0,0.00023287,6]
[366694446,1750414265218,-405.58730031,0.00023287,6]
[366694447,1750414265230,-460.0,0.00023287,6]
[366694448,1750414265348,-591.46070835,0.00023287,6]
[366694449,1750414265359,-460.0,0.00023287,6]
[366694450,1750414265369,-460.0,0.00023287,6]
[366694451,1750414265380,-460.0,0.00023287,6]
[366694452,1750414265390,-460.0,0.00023287,6]
[366694453,1750414265399,-460.0,0.00023287,6]
[366694454,1750414265409,-460.0,0.00023287,6]
[366694455,1750414265419,-460.0,0.00023287,6]
[366694456,1750414265428,-460.0,0.00023287,6]
[366694457,1750414265438,-460.0,0.00023287,6]
[366694458,1750414265447,-928.2,0.00023287,6]
[366694459,1750414265458,-737.7,0.00023287,6]
[366694460,1750414265467,-460.0,0.00023287,6]
[366694461,1750414265477,-460.0,0.00023287,6]
[366694462,1750414265487,-460.0,0.00023287,6]
[366694463,1750414265503,-460.0,0.00023287,6]
[366694464,1750414265513,-460.0,0.00023287,6]
[366694465,1750414265523,-461.022193,0.00023287,7]
[366694466,1750414265533,-460.0,0.00023287,6]
[366694467,1750414265543,-461.022193,0.00023287,7]
[366694468,1750414265552,-460.0,0.00023287,6]
[366694469,1750414265562,-460.0,0.00023287,6]
[366694470,1750414265571,-460.0,0.00023287,6]
[366694471,1750414265581,-943.0,0.00023287,6]
[366694472,1750414265591,-489.71,0.00023287,6]
[366694473,1750414265600,-435.25960555,0.00023287,6]
[366694474,1750414265609,-460.0,0.00023287,6]
[366694475,1750414265619,-460.0,0.00023287,6]
[366694476,1750414265628,-460.0,0.00023287,6]
[366694477,1750414265638,-460.0,0.00023287,6]
[366694478,1750414265647,-460.0,0.00023287,6]
[366694479,1750414265657,-460.0,0.00023287,6]
[366694480,1750414265666,-460.0,0.00023287,6]
[366694481,1750414265675,-460.0,0.00023287,6]
[366694482,1750414265685,-460.0,0.00023287,6]
[366694483,1750414265694,-460.0,0.00023287,6]
[366694484,1750414265704,-460.0,0.00023287,2]
[366694485,1750414265713,-206.27428381,0.00023287,6]
[366694486,1750414265723,-314.72477799,0.00023287,6]
[366694487,1750414265733,-440.0,0.00023287,6]
[366694488,1750414265742,-782.36,0.00023287,6]
[366694489,1750414265752,-1373.98,0.00023287,6]
[366694490,1750414265762,-460.0,0.00023287,6]
[366694491,1750414265772,-460.0,0.00023287,6]
[366694492,1750414265781,-843.77,0.00023287,2]
[366694493,1750414265791,-460.0,0.00023287,6]
[366694494,1750414265800,-460.0,0.00023287,6]
[366694495,1750414265810,-500.0,0.00023288,2]
[366694496,1750414265819,-500.0,0.00023288,2]
[366694497,1750414265829,-637.42160195,0.00023288,2]
[366694498,1750414265839,-500.0,0.00023288,2]
[366694499,1750414265849,-237.4912891,0.00023288,2]
[366694500,1750414265859,-190.96,0.0002329,4]
[366694501,1750414265869,-222.78715985,0.0002329,4]
[366694502,1750414265879,-178.210712,0.00023296,8]
[366694503,1750414265888,-2225.49356621,0.000233,2]
[366694504,1750414265897,-435.48,0.000233,7]
[366694505,1750414265907,-1696.38,0.000233,7]
[366694506,1750414265917,-846.08887863,0.000233,7]
[366694507,1750414265927,-250.0,0.00023321,2]
[366694508,1750414265936,-168.0,0.00023329,2]
[366694509,1750414265946,-3769.57,0.00023388,3]
[366694510,1750414265956,-151.0,0.00023388,7]
[366694511,1750414265966,-168.0,0.00023391,2]
[366694512,1750414265975,-168.0,0.00023395,2]
[366694513,1750414265985,-640.0,0.000234,2]
[366694514,1750414265994,-687.3592294,0.00023417,9]
[366694515,1750414266004,-5000.0,0.00023422,2]
[366694516,1750414266013,-168.0,0.00023495,2]
[366694517,1750414266022,-500.0,0.0002354,2]
[366694518,1750414266031,-168.0,0.00023544,2]
[366694519,1750414266040,-687.3592294,0.00023555,9]
[366694520,1750414266050,-300.359752,0.00023561,7]
[366694521,1750414266058,-300.359752,0.00023561,7]
[366694522,1750414266070,-460.0,0.00023561,6]
[366694523,1750414266079,-151.0,0.00023561,7]
[366694524,1750414266089,-430.0,0.00023561,6]
[366694525,1750414266098,-460.0,0.00023561,6]
[366694526,1750414266108,-460.0,0.00023561,6]
[366694527,1750414266118,-460.0,0.00023561,6]
[366694528,1750414266127,-460.0,0.00023561,6]
[366694529,1750414266136,-460.0,0.00023561,6]
[366694530,1750414266146,-460.0,0.00023561,6]
[366694531,1750414266156,-460.0,0.00023561,6]
[366694532,1750414266165,-460.0,0.00023561,6]
[366694533,1750414266174,-274.6988548,0.00023561,6]
[366694534,1750414266183,-460.0,0.00023561,6]
[366694535,1750414266192,-460.0,0.00023561,6]
[366694536,1750414266201,-166.56600005,0.00023561,6]
[366694537,1750414266211,-460.0,0.00023561,6]
[366694538,1750414266220,-460.0,0.00023561,6]
[366694539,1750414266229,-460.0,0.00023561,6]
[366694540,1750414266242,-460.0,0.00023561,6]
[366694541,1750414266251,-460.0,0.00023561,6]
[366694542,1750414266260,-460.0,0.00023561,6]
[366694543,1750414266269,-460.0,0.00023561,6]
[366694544,1750414266278,-460.0,0.00023561,6]
[366694545,1750414266289,-460.0,0.00023561,6]
[366694546,1750414266298,-460.0,0.00023561,6]
[366694547,1750414266307,-460.0,0.00023561,6]
[366694548,1750414266318,-460.0,0.00023561,6]
[366694549,1750414266327,-460.0,0.00023561,6]
[366694550,1750414266337,-460.0,0.00023561,6]
[366694551,1750414266346,-200.0,0.00023561,6]
[366694552,1750414266355,-200.0,0.00023561,6]
[366694553,1750414266364,-200.0,0.00023561,6]
[366694554,1750414266374,-200.0,0.00023561,6]
[366694555,1750414266383,-460.0,0.00023561,6]
[366694556,1750414266392,-460.0,0.00023561,6]
[366694557,1750414266401,-460.0,0.00023561,6]
[366694558,1750414266410,-350.52765244,0.00023561,6]
[366694559,1750414266420,-384.07300146,0.00023561,6]
[366694560,1750414266429,-460.0,0.00023561,6]
[366694561,1750414266439,-460.0,0.00023561,6]
[366694562,1750414266448,-412.02727555,0.00023561,6]
[366694563,1750414266458,-460.0,0.00023561,6]
[366694564,1750414266467,-577.86,0.00023561,6]
[366694565,1750414266477,-460.0,0.00023561,6]
[366694566,1750414266487,-460.0,0.00023561,6]
[366694567,1750414266496,-460.0,0.00023561,6]
[366694568,1750414266506,-476.36296071,0.00023561,6]
[366694569,1750414266515,-460.0,0.00023561,6]
[366694570,1750414266525,-460.0,0.00023561,6]
[366694571,1750414266535,-460.0,0.00023561,6]
[366694572,1750414266544,-460.0,0.00023561,6]
[366694573,1750414266553,-460.0,0.00023561,6]
[366694574,1750414266563,-1189.1,0.00023561,6]
[366694575,1750414266571,-460.0,0.00023561,6]
[366694576,1750414266581,-460.0,0.00023561,6]
[366694577,1750414266590,-460.0,0.00023561,6]
[366694578,1750414266599,-460.0,0.00023561,6]
[366694579,1750414266608,-505.17,0.00023561,6]
[366694580,1750414266618,-460.0,0.00023561,6]
[366694581,1750414266627,-1639.91,0.00023561,6]
[366694582,1750414266636,-460.0,0.00023561,6]
[366694583,1750414266646,-460.0,0.00023561,6]
[366694584,1750414266655,-460.0,0.00023561,6]
[366694585,1750414266664,-460.0,0.00023561,6]
[366694586,1750414266674,-1631.31,0.00023561,6]
[366694587,1750414266683,-460.0,0.00023561,6]
[366694588,1750414266692,-460.0,0.00023561,6]
[366694589,1750414266702,-460.0,0.00023561,6]
[366694590,1750414266711,-1235.74,0.00023561,6]
[366694591,1750414266721,-460.0,0.00023561,6]
[366694592,1750414266730,-515.60423802,0.00023561,6]
[366694593,1750414266739,-479.32756903,0.00023561,6]
[366694594,1750414266748,-460.0,0.00023561,6]
[366694595,1750414266757,-1325.04,0.00023561,6]
[366694596,1750414266767,-601.80596752,0.00023561,6]
[366694597,1750414266776,-460.0,0.00023561,6]
[366694598,1750414266786,-222.35322493,0.00023561,6]
[366694599,1750414266795,-197.599213,0.00023561,2]
[366694600,1750414266804,-460.0,0.00023561,6]
[366694601,1750414266813,-197.599213,0.00023561,2]
[366694602,1750414266823,-460.0,0.00023561,6]
[366694603,1750414266833,-460.0,0.00023561,6]
[366694604,1750414266843,-582.22,0.00023561,6]
[366694605,1750414266852,-460.0,0.00023561,6]
[366694606,1750414266873,-460.0,0.00023561,6]
[366694607,1750414266884,-151.0,0.00023561,7]
[366694608,1750414266894,-460.0,0.00023561,6]
[366694609,1750414266904,-958.44,0.00023561,6]
[366694610,1750414266915,-540.0,0.00023561,6]
[366694611,1750414266925,-245.49434132,0.00023561,6]
[366694612,1750414266935,-647.26,0.00023561,6]
[366694613,1750414266944,-460.0,0.00023561,6]
[366694614,1750414266954,-460.0,0.00023561,6]
[366694615,1750414266964,-460.0,0.00023561,6]
[366694616,1750414266974,-460.0,0.00023561,6]
[366694617,1750414266984,-493.86,0.00023561,6]
[366694618,1750414266994,-460.36,0.00023561,6]
[366694619,1750414267004,-460.0,0.00023561,6]
[366694620,1750414267014,-173.72190465,0.00023561,6]
[366694621,1750414267024,-460.0,0.00023561,6]
[366694622,1750414267034,-460.0,0.00023561,6]
[366694623,1750414267044,-460.0,0.00023561,6]
[366694624,1750414267055,-460.0,0.00023561,6]
[366694625,1750414267064,-460.0,0.00023561,6]
[366694626,1750414267074,-460.0,0.00023561,6]
[366694627,1750414267084,-460.0,0.00023561,6]
[366694628,1750414267093,-460.0,0.00023561,6]
[366694629,1750414267104,-460.0,0.00023561,6]
[366694630,1750414267114,-460.0,0.00023561,6]
[366694631,1750414267124,-460.0,0.00023561,6]
[366694632,1750414267134,-460.0,0.00023561,6]
[366694633,1750414267144,-460.0,0.00023561,6]
[366694634,1750414267154,-928.2,0.00023561,6]
[366694635,1750414267164,-677.74287614,0.00023561,6]
[366694636,1750414267559,-300.0,0.00021917,6]
[366694637,1750414267746,-488.37449055,0.00021903,2]
[366694638,1750414267758,-1215.35,0.00021917,6]
[366694639,1750414267768,-460.0,0.00021917,6]
[366694640,1750414267778,-460.0,0.00021917,6]
[366694641,1750414267788,-1515.35,0.00022191,6]
[366694642,1750414267798,-1.64583298,0.00022191,6]
[366694643,1750414268443,-430.0,0.00021917,6]
[366694644,1750414268452,-460.0,0.00021917,6]
[366694645,1750414268463,-131.13,0.00022191,6]
[366694646,1750414268475,-398.94907532,0.00022191,6]
[366694647,1750414268485,-1515.35,0.00022465,6]
[366694648,1750414268495,-460.0,0.00022739,6]
[366694649,1750414268505,-1515.35,0.00022739,6]
[366694650,1750414268515,-460.0,0.00023013,6]
[366694651,1750414268524,-538.81384554,0.00023013,6]
[366694652,1750414268548,-210.31204284,0.0002181,2]
[366694653,1750414268558,-976.53615446,0.00023013,6]
[366694654,1750414268568,-460.0,0.00023287,6]
[366694655,1750414268577,-1515.35,0.00023287,6]
[366694656,1750414268587,-59.95712386,0.00023561,6]
[366694657,1750414268597,-460.0,0.00023561,6]
[366694658,1750414268607,-460.0,0.00023561,6]
[366694659,1750414268617,-460.0,0.00023561,6]
[366694660,1750414268626,-460.0,0.00023561,6]
[366694661,1750414268636,-460.0,0.00023561,6]
[366694662,1750414268646,-460.0,0.00023561,6]
[366694663,1750414268656,-460.0,0.00023561,6]
[366694664,1750414268665,-460.0,0.00023561,6]
[366694665,1750414268675,-460.0,0.00023561,6]
[366694666,1750414268685,-943.0,0.00023561,6]
[366694667,1750414268695,-489.71,0.00023561,6]
[366694668,1750414268705,-460.0,0.00023561,6]
[366694669,1750414268714,-214.45350539,0.00023561,6]
[366694670,1750414268724,-460.0,0.00023561,6]
[366694671,1750414268734,-460.0,0.00023561,6]
[366694672,1750414268743,-460.0,0.00023561,6]
[366694673,1750414268753,-460.0,0.00023561,6]
[366694674,1750414268763,-460.0,0.00023561,6]
[366694675,1750414268773,-460.0,0.00023561,6]
[366694676,1750414268784,-460.0,0.00023561,6]
[366694677,1750414268793,-460.0,0.00023561,6]
[366694678,1750414268803,-460.0,0.00023561,2]
[366694679,1750414268812,-782.36,0.00023561,6]
[366694680,1750414268822,-1373.98,0.00023561,6]
[366694681,1750414268831,-460.0,0.00023561,6]
[366694682,1750414268840,-460.0,0.00023561,6]
[366694683,1750414268851,-843.77,0.00023561,2]
[366694684,1750414268861,-460.0,0.00023561,6]
[366694685,1750414268871,-460.0,0.00023561,6]
[366694686,1750414268881,-460.0,0.00023561,6]
[366694687,1750414268891,-1515.35,0.00023561,6]
[366694688,1750414268902,-1000.0,0.00023568,2]
[366694689,1750414268911,-385.76134592,0.00023568,2]
[366694690,1750414268922,-1500.0,0.00023568,2]
[366694691,1750414268932,-1500.0,0.00023568,2]
[366694692,1750414268941,-1500.0,0.00023568,2]
[366694693,1750414268951,-1800.0,0.00023568,2]
[366694694,1750414268962,-168.0,0.0002359,2]
[366694695,1750414268971,-37779.06720771,0.00023598,2]
[366694696,1750414268981,-151.0,0.00023598,7]
[366694697,1750414269000,-151.0,0.00023598,7]
[366694698,1750414269015,-461.022193,0.00023598,7]
[366694699,1750414269026,-461.022193,0.00023598,7]
[366694700,1750414269037,-748.9,0.000236,2]
[366694701,1750414269048,-585.03096324,0.00023641,2]
[366694702,1750414269058,-500.0,0.00023668,2]
[366694703,1750414269217,-500.0,0.00023672,2]
[366694704,1750414269228,-168.0,0.00023682,2]
[366694705,1750414269242,-168.0,0.00023694,2]
[366694706,1750414269252,-5000.0,0.000237,11]
[366694707,1750414269270,-1971.05936225,0.00023788,2]
[366694708,1750414269280,-4373.0,0.00023812,2]
[366694709,1750414269289,-151.0,0.00023816,7]
[366694710,1750414269299,-2000.0,0.00023816,2]
[366694711,1750414269308,-151.0,0.00023835,7]
[366694712,1750414269318,-460.0,0.00023835,6]
[366694713,1750414269329,-151.0,0.00023835,7]
[366694714,1750414269340,-460.0,0.00023835,6]
[366694715,1750414269351,-460.0,0.00023835,6]
[366694716,1750414269361,-335.86,0.00023835,6]
[366694717,1750414269372,-230.45679617,0.00023835,6]
[366694718,1750414269382,-460.0,0.00023835,6]
[366694719,1750414269391,-460.0,0.00023835,6]
[366694720,1750414269402,-460.0,0.00023835,6]
[366694721,1750414269413,-516.39,0.00023835,6]
[366694722,1750414269423,-460.0,0.00023835,6]
[366694723,1750414269433,-460.0,0.00023835,6]
[366694724,1750414269443,-460.0,0.00023835,6]
[366694725,1750414269452,-460.0,0.00023835,6]
[366694726,1750414269462,-460.0,0.00023835,6]
[366694727,1750414269472,-460.0,0.00023835,6]
[366694728,1750414269481,-460.0,0.00023835,6]
[366694729,1750414269492,-460.0,0.00023835,6]
[366694730,1750414269502,-460.0,0.00023835,6]
[366694731,1750414269511,-460.0,0.00023835,6]
[366694732,1750414269521,-460.0,0.00023835,6]
[366694733,1750414269531,-460.0,0.00023835,6]
[366694734,1750414269541,-460.0,0.00023835,6]
[366694735,1750414269551,-460.0,0.00023835,6]
[366694736,1750414269560,-460.0,0.00023835,6]
[366694737,1750414269570,-460.0,0.00023835,6]
[366694738,1750414269585,-460.0,0.00023835,6]
[366694739,1750414269595,-460.0,0.00023835,6]
[366694740,1750414269604,-460.0,0.00023835,6]
[366694741,1750414269614,-460.0,0.00023835,6]
[366694742,1750414269624,-577.86,0.00023835,6]
[366694743,1750414269634,-460.0,0.00023835,6]
[366694744,1750414269644,-460.0,0.00023835,6]
[366694745,1750414269654,-460.0,0.00023835,6]
[366694746,1750414269664,-460.0,0.00023835,6]
[366694747,1750414269674,-460.0,0.00023835,6]
[366694748,1750414269684,-460.0,0.00023835,6]
[366694749,1750414269694,-460.0,0.00023835,6]
[366694750,1750414269704,-192.6235388,0.00023835,6]
[366694751,1750414269714,-1189.1,0.00023835,6]
[366694752,1750414269724,-460.0,0.00023835,6]
[366694753,1750414269734,-460.0,0.00023835,6]
[366694754,1750414269743,-460.0,0.00023835,6]
[366694755,1750414269754,-460.0,0.00023835,6]
[366694756,1750414269764,-505.17,0.00023835,6]
[366694757,1750414269774,-460.0,0.00023835,6]
[366694758,1750414269784,-1639.91,0.00023835,6]
[366694759,1750414269794,-460.0,0.00023835,6]
[366694760,1750414269805,-460.0,0.00023835,6]
[366694761,1750414269816,-460.0,0.00023835,6]
[366694762,1750414269826,-460.0,0.00023835,6]
[366694763,1750414269837,-1631.31,0.00023835,6]
[366694764,1750414269847,-460.0,0.00023835,6]
[366694765,1750414269858,-460.0,0.00023835,6]
[366694766,1750414269867,-460.0,0.00023835,6]
[366694767,1750414269877,-1235.74,0.00023835,6]
[366694768,1750414269888,-460.0,0.00023835,6]
[366694769,1750414269898,-460.0,0.00023835,6]
[366694770,1750414269908,-1325.04,0.00023835,6]
[366694771,1750414269918,-460.0,0.00023835,6]
[366694772,1750414269927,-460.0,0.00023835,6]
[366694773,1750414269937,-197.599213,0.00023835,2]
[366694774,1750414269947,-197.599213,0.00023835,2]
[366694775,1750414269957,-460.0,0.00023835,6]
[366694776,1750414269967,-460.0,0.00023835,6]
[366694777,1750414269977,-582.22,0.00023835,6]
[366694778,1750414269986,-460.0,0.00023835,6]
[366694779,1750414269996,-460.0,0.00023835,6]
[366694780,1750414270005,-151.0,0.00023835,7]
[366694781,1750414270015,-460.0,0.00023835,6]
[366694782,1750414270025,-958.44,0.00023835,6]
[366694783,1750414270034,-647.26,0.00023835,6]
[366694784,1750414270045,-460.0,0.00023835,6]
[366694785,1750414270055,-460.0,0.00023835,6]
[366694786,1750414270066,-460.0,0.00023835,6]
[366694787,1750414270076,-493.86,0.00023835,6]
[366694788,1750414270085,-460.36,0.00023835,6]
[366694789,1750414270095,-460.0,0.00023835,6]